bitfinex-derivatives/quotes_BTCF0:USTF0_20250822
["timestamp","ask_amount","ask_price","bid_price","bid_amount"]
[1755871369619,2.16644397,114000.0,113980.0,0.5877498]
[1755871369824,2.16644397,114000.0,113980.0,0.5]
[1755871369825,0.14339,113990.0,113980.0,0.5]
[1755871370027,2.38957,113990.0,113980.0,0.5]
[1755871370222,2.56522,113990.0,113980.0,0.5]
[1755871370422,0.14339,113980.0,113970.0,0.0877577]
[1755871370627,0.13739,113980.0,113970.0,0.0877577]
[1755871371225,0.02305397,114000.0,113980.0,0.0947475]
[1755871371532,2.44488397,114000.0,113980.0,0.007]
[1755871371728,0.10519397,114000.0,113980.0,0.007]
[1755871372030,0.02325397,114000.0,113980.0,0.007]
[1755871372228,0.18749397,114000.0,113980.0,0.007]
[1755871372434,0.26943397,114000.0,113980.0,0.007]
[1755871372729,0.14339,113990.0,113980.0,0.007]
[1755871373031,0.30783,113990.0,113970.0,0.005]
[1755871373232,0.14339,113980.0,113970.0,0.0927577]
[1755871373428,0.14339,113990.0,113980.0,0.08755]
[1755871373734,0.16644397,114000.0,113980.0,0.0937427]
[1755871373926,0.02305397,114000.0,113980.0,0.70324512]
[1755871374132,0.02305397,114000.0,113970.0,0.8783658]
[1755871374525,0.02305397,114000.0,113980.0,0.005]
[1755871374721,0.14339,113990.0,113980.0,0.092749]
[1755871374925,0.14339,113990.0,113980.0,0.12162132]
[1755871375531,2.56522,113990.0,113980.0,0.005]
[1755871375735,0.14339,113980.0,113970.0,0.0987578]
[1755871376129,0.14339,113990.0,113980.0,0.0927481]
[1755871376328,0.02305397,114000.0,113990.0,0.0839065]
[1755871376533,0.0002,114000.0,113990.0,0.14339]
[1755871376833,0.0002,114000.0,113990.0,0.2311324]
[1755871377029,0.17565,114010.0,114000.0,0.0877346]
[1755871377228,0.17565,114010.0,113990.0,0.24497]
[1755871377430,0.0008,114030.0,113990.0,0.3327122]
[1755871377635,0.17565,114030.0,114000.0,0.1696737]
[1755871377931,0.17565,114030.0,114010.0,0.2507568]
[1755871378137,0.17645,114030.0,114010.0,0.08194]
[1755871378338,0.17565,114020.0,114010.0,0.24497]
[1755871378638,0.31904,114020.0,114010.0,0.250757]
[1755871378833,0.31904,114020.0,114010.0,0.087727]
[1755871379035,0.24618,114050.0,114010.0,0.582697]
[1755871379238,0.14339,114030.0,114020.0,0.16303]
[1755871379438,0.31904,114030.0,114020.0,0.16303]
[1755871379733,0.48328,114030.0,114010.0,0.476087]
[1755871379936,0.48328,114030.0,114010.0,0.312777]
[1755871380237,0.14339,114030.0,114020.0,0.0877193]
[1755871380441,0.0002,114030.0,114020.0,0.7260793]
[1755871381640,0.0002,114030.0,114020.0,0.4768793]
[1755871381834,0.0002,114030.0,114020.0,0.7260793]
[1755871382038,0.0002,114030.0,114020.0,0.4760793]
[1755871382532,0.0002,114030.0,114020.0,0.4768793]
[1755871382936,0.16424,114070.0,114030.0,0.54159455]
[1755871383131,0.30763,114070.0,114040.0,0.98418955]
[1755871383331,0.30763,114070.0,114040.0,0.8778172]
[1755871383332,0.64339,114070.0,114040.0,0.8778172]
[1755871383633,0.24618,114100.0,114050.0,0.0008]
[1755871383835,0.5,114100.0,114060.0,1.41928065]
[1755871384044,0.5,114100.0,114060.0,0.8776861]
[1755871384244,0.80763,114100.0,114070.0,0.0884809]
[1755871384428,0.14339,114110.0,114060.0,0.8776742]
[1755871384634,0.14339,114100.0,114070.0,0.8776085]
[1755871384830,0.78777455,114130.0,114070.0,0.8776085]
[1755871385035,0.14339,114110.0,114080.0,0.0008]
[1755871385235,0.14339,114110.0,114080.0,0.8767202]
[1755871385437,0.14339,114110.0,114080.0,0.8767317]
[1755871385740,0.64339,114110.0,114080.0,0.8775317]
[1755871385933,0.14339,114130.0,114090.0,1.1274548]
[1755871386132,0.0002,114110.0,114100.0,0.0876578]
[1755871386339,0.0002,114110.0,114100.0,0.0884578]
[1755871386537,0.0002,114110.0,114100.0,0.3376578]
[1755871387142,0.0002,114110.0,114100.0,0.42609637]
[1755871387342,0.0002,114110.0,114100.0,0.17529637]
[1755871387538,0.0002,114110.0,114100.0,0.0876578]
[1755871387741,0.14359,114110.0,114100.0,0.0886578]
[1755871387943,0.0002,114110.0,114100.0,0.0886578]
[1755871388242,0.0002,114110.0,114100.0,0.41030737]
[1755871388436,0.0002,114110.0,114100.0,0.49874594]
[1755871388633,0.0002,114110.0,114100.0,0.99874594]
[1755871388839,0.30763,114150.0,114110.0,0.8772856]
[1755871388840,0.14339,114150.0,114110.0,0.8772856]
[1755871389241,0.22533,114170.0,114130.0,0.8771477]
[1755871389443,0.08194,114210.0,114130.0,1.1273477]
[1755871389740,0.14339,114190.0,114150.0,0.8761943]
[1755871389943,0.14339,114190.0,114160.0,2.5437576]
[1755871390136,0.22533,114220.0,114160.0,2.5437576]
[1755871390336,0.30763,114200.0,114170.0,0.0875968]
[1755871390542,0.30763,114190.0,114170.0,0.0876016]
[1755871390741,0.30763,114190.0,114160.0,1.82586091]
[1755871390742,0.14339,114190.0,114180.0,0.0875964]
[1755871390939,0.30763,114200.0,114170.0,0.0876034]
[1755871391145,1.31904,114190.0,114160.0,1.82585263]
[1755871391339,0.31904,114190.0,114170.0,0.0875971]
[1755871391544,0.14339,114210.0,114180.0,0.0875964]
[1755871391743,1.14339,114210.0,114160.0,2.61514533]
[1755871392037,1.30763,114210.0,114180.0,0.0875964]
[1755871392235,0.0002,114200.0,114160.0,2.61534733]
[1755871392542,0.0002,114190.0,114180.0,0.5875888]
[1755871392742,0.0002,114190.0,114180.0,0.5]
[1755871392939,0.0002,114190.0,114180.0,0.5875964]
[1755871393142,0.0002,114190.0,114180.0,0.9259659]
[1755871393346,0.0002,114190.0,114180.0,1.45488753]
[1755871393644,0.02305397,114240.0,114190.0,0.8766873]
[1755871393841,0.02305397,114240.0,114200.0,0.8776106]
[1755871394040,0.16644397,114240.0,114200.0,0.8758106]
[1755871394239,0.16644397,114240.0,114200.0,0.08757717]
[1755871394441,0.14339,114230.0,114200.0,0.08757717]
[1755871394750,0.30763,114220.0,114180.0,2.5486316]
[1755871394949,0.14339,114210.0,114190.0,0.087588]
[1755871395247,0.14339,114220.0,114210.0,0.0875708]
[1755871395447,0.14339,114220.0,114180.0,2.5566115]
[1755871395648,0.26263,114210.0,114190.0,0.087588]
[1755871395846,0.08194,114230.0,114200.0,0.8757958]
[1755871395847,0.24618,114230.0,114200.0,0.8757958]
[1755871396034,0.02305397,114240.0,114210.0,1.0191238]
[1755871396341,0.02305397,114240.0,114210.0,1.1275338]
[1755871396542,0.02305397,114240.0,114220.0,0.25]
[1755871396749,0.02305397,114240.0,114220.0,0.3375657]
[1755871396948,0.02325397,114240.0,114220.0,0.0875657]
[1755871397247,0.02325397,114240.0,114230.0,0.1206638]
[1755871397445,0.0002,114240.0,114230.0,0.6206638]
[1755871397745,1.5877662,114240.0,114230.0,0.6206638]
[1755871397938,0.2314,114240.0,114230.0,0.6206638]
[1755871398139,0.0002,114240.0,114230.0,0.6206638]
[1755871398539,0.33838,114240.0,114230.0,0.6206638]
[1755871398847,2.12581915,114240.0,114230.0,0.6206638]
[1755871399051,1.9811662,114240.0,114230.0,0.6206638]
[1755871399245,1.7863862,114240.0,114230.0,0.6206638]
[1755871399437,1.7311662,114240.0,114230.0,0.6206638]
[1755871399740,1.5363862,114240.0,114230.0,0.6206638]
[1755871399945,0.1436,114240.0,114230.0,0.6206638]
[1755871400247,0.0002,114240.0,114230.0,0.70820264]
[1755871400647,0.0002,114240.0,114230.0,0.7082213]
[1755871400850,0.0002,114240.0,114230.0,0.79576014]
[1755871402151,0.0002,114240.0,114230.0,0.79656014]
[1755871402338,0.0002,114240.0,114230.0,0.79576014]
[1755871402650,0.2312,114310.0,114250.0,1.40414383]
[1755871402945,1.166462,114310.0,114270.0,0.8762689]
[1755871403142,1.309862,114310.0,114270.0,0.8762689]
[1755871403344,1.309862,114310.0,114280.0,0.8751924]
[1755871403739,0.11911728,114400.0,114290.0,0.8751158]
[1755871403942,0.1434,114340.0,114330.0,0.0874809]
[1755871404147,0.276266,114340.0,114330.0,0.0874809]
[1755871404352,0.1434,114350.0,114340.0,0.0874734]
[1755871404553,1.637508,114350.0,114340.0,0.0874734]
[1755871404748,1.725308,114350.0,114340.0,0.0874734]
[1755871404957,1.975308,114350.0,114340.0,0.0874734]
[1755871405150,0.33818,114330.0,114300.0,0.8750393]
[1755871405443,0.42598,114330.0,114320.0,0.0874886]
[1755871405645,0.1436,114330.0,114320.0,0.0874886]
[1755871405844,0.1436,114330.0,114310.0,0.0874962]
[1755871405845,1.582108,114330.0,114310.0,0.0874962]
[1755871406045,0.0878,114300.0,114290.0,0.087511]
[1755871406250,0.42618,114300.0,114290.0,0.08747758]
[1755871406447,0.42598,114290.0,114280.0,0.07000349]
[1755871406750,0.15,114390.0,114290.0,0.17481]
[1755871407051,0.19478,114330.0,114310.0,0.09003]
[1755871407249,0.19478,114330.0,114320.0,0.0874886]
[1755871407548,0.19478,114330.0,114300.0,0.08478]
[1755871407549,1.361242,114320.0,114300.0,0.08478]
[1755871407752,1.167262,114320.0,114280.0,0.15695658]
[1755871407943,1.166462,114310.0,114300.0,0.0875038]
[1755871408246,1.166462,114310.0,114280.0,0.0875189]
[1755871408247,0.19478,114290.0,114280.0,0.0875189]
[1755871408452,1.361242,114300.0,114290.0,0.0875114]
[1755871408648,0.1434,114300.0,114290.0,0.1775414]
[1755871408845,0.1434,114300.0,114290.0,0.2623214]
[1755871409050,1.494108,114300.0,114280.0,0.17481]
[1755871409248,0.33818,114300.0,114270.0,0.0875244]
[1755871409449,0.42598,114280.0,114270.0,0.08750054]
[1755871409650,0.220666,114280.0,114260.0,0.0875345]
[1755871409947,0.276266,114280.0,114270.0,0.09003]
[1755871410153,1.310062,114280.0,114270.0,0.17481]
[1755871410352,1.7511398,114410.0,114310.0,0.0874961]
[1755871410649,0.0008,114370.0,114310.0,0.0874961]
[1755871410950,0.132866,114320.0,114310.0,0.0874961]
[1755871411148,0.132866,114320.0,114310.0,0.2794961]
[1755871411340,0.14385295,114380.0,114310.0,0.3642761]
[1755871411341,0.0008,114380.0,114310.0,0.3642761]
[1755871411542,0.132866,114320.0,114310.0,0.5]
[1755871411744,0.132866,114320.0,114310.0,0.29]
[1755871412048,1.166462,114320.0,114310.0,0.5694962]
[1755871412246,1.166462,114320.0,114310.0,0.6543162]
[1755871412441,0.0878,114340.0,114320.0,0.0874882]
[1755871412642,0.1434,114330.0,114320.0,0.192]
[1755871412847,0.1434,114330.0,114310.0,0.6008156]
[1755871412848,0.471046,114330.0,114310.0,0.6008556]
[1755871413050,1.166462,114330.0,114320.0,0.3642686]
[1755871413352,0.1434,114350.0,114340.0,0.192]
[1755871413551,1.309862,114350.0,114340.0,0.192]
[1755871413748,0.33818,114330.0,114320.0,0.0874879]
[1755871413947,0.1434,114320.0,114310.0,0.27686]
[1755871414150,0.471246,114320.0,114310.0,0.0875761]
[1755871414451,0.0002,114320.0,114310.0,0.84112603]
[1755871414755,0.1434,114340.0,114330.0,0.3642609]
[1755871414948,1.299328,114340.0,114330.0,0.3642609]
[1755871415149,1.299328,114340.0,114330.0,0.5027609]
[1755871415356,0.33818,114360.0,114350.0,0.087466]
[1755871415550,1.166462,114350.0,114330.0,0.41528]
[1755871415747,0.42598,114330.0,114310.0,0.13858]
[1755871415952,0.42598,114320.0,114310.0,0.0875762]
[1755871416147,0.558846,114320.0,114310.0,8e-05]
[1755871416345,2.11916095,114320.0,114310.0,8e-05]
[1755871416546,1.725308,114320.0,114310.0,0.06881238]
[1755871416752,0.15,114390.0,114320.0,0.0874889]
[1755871416753,0.28258,114340.0,114320.0,0.0874889]
[1755871416956,0.276266,114330.0,114320.0,0.0874889]
[1755871417158,0.42598,114320.0,114310.0,0.06881238]
[1755871417355,0.558846,114320.0,114310.0,0.06881238]
[1755871417553,2.11916095,114320.0,114310.0,0.06881238]
[1755871417747,2.11916095,114320.0,114290.0,1.6634]
[1755871417748,2.11916095,114320.0,114280.0,0.2795129]
[1755871417749,0.0878,114300.0,114280.0,0.0875129]
[1755871418058,1.637508,114290.0,114280.0,0.2795129]
[1755871418256,1.299328,114300.0,114280.0,0.2268129]
[1755871418446,1.166462,114300.0,114290.0,0.27678]
[1755871418650,0.33818,114290.0,114280.0,0.17499578]
[1755871418852,1.725308,114290.0,114280.0,0.5]
[1755871419248,0.52792163,114350.0,114280.0,0.77758]
[1755871419448,0.471046,114300.0,114290.0,0.0875082]
[1755871419648,0.28258,114320.0,114300.0,0.0875036]
[1755871419852,1.254262,114320.0,114310.0,0.192]
[1755871420051,1.299328,114320.0,114310.0,0.41528]
[1755871420246,0.33818,114310.0,114300.0,0.0875036]
[1755871420447,0.471046,114310.0,114300.0,0.0875036]
[1755871420651,0.42598,114300.0,114290.0,4e-05]
[1755871420858,1.442728,114300.0,114290.0,0.00084]
[1755871421054,0.1434,114300.0,114290.0,0.27682]
[1755871421257,0.42598,114320.0,114300.0,0.0875042]
[1755871421456,0.0002,114310.0,114300.0,0.2803042]
[1755871421658,1e-07,114310.0,114300.0,0.5035842]
[1755871421957,0.33818,114330.0,114310.0,0.192]
[1755871422258,0.276266,114320.0,114310.0,0.3642764]
[1755871422658,0.1434,114320.0,114310.0,0.3642764]
[1755871423060,0.0878,114330.0,114320.0,0.0874886]
[1755871423263,1.397662,114330.0,114320.0,0.2794886]
[1755871423457,1.530528,114330.0,114320.0,0.2794886]
[1755871423658,1.725308,114330.0,114320.0,0.2794886]
[1755871423858,1.504642,114330.0,114320.0,0.2794886]
[1755871424164,1.725308,114330.0,114320.0,0.0874886]
[1755871424362,0.28258,114350.0,114320.0,0.08478]
[1755871424658,0.33818,114320.0,114310.0,0.087489]
[1755871424862,0.276266,114320.0,114310.0,0.279489]
[1755871425059,0.276466,114320.0,114310.0,0.279489]
[1755871425259,0.559046,114320.0,114310.0,0.087489]
[1755871425560,0.559046,114320.0,114310.0,0.587489]
[1755871425561,1.725508,114320.0,114310.0,0.587489]
[1755871425961,1.530728,114320.0,114310.0,0.779489]
[1755871426162,2.12016095,114320.0,114310.0,0.22322]
[1755871426352,2.12016095,114320.0,114310.0,0.3107162]
[1755871426667,2.65924291,114320.0,114280.0,0.15599697]
[1755871426860,0.364066,114290.0,114280.0,0.1875127]
[1755871427167,0.364066,114290.0,114250.0,0.08558]
[1755871427168,0.133866,114290.0,114250.0,0.08478]
[1755871427466,0.133866,114290.0,114230.0,1.6632]
[1755871427467,0.23018,114270.0,114260.0,0.1875331]
[1755871427659,0.23018,114270.0,114260.0,0.5159731]
[1755871427660,0.0002,114270.0,114260.0,0.5159731]
[1755871427865,0.0002,114270.0,114260.0,0.6159731]
[1755871428054,1.37367103,114270.0,114260.0,0.1875345]
[1755871428265,1.76752398,114270.0,114250.0,0.51632081]
[1755871428455,1.51812398,114260.0,114240.0,0.087549]
[1755871428655,0.23098,114230.0,114190.0,0.28133]
[1755871428859,0.14404,114190.0,114170.0,1.95888079]
[1755871429056,0.14404,114180.0,114170.0,2.0498335]
[1755871429266,0.23018,114210.0,114200.0,0.0875805]
[1755871429468,0.14404,114220.0,114210.0,0.2869211]
[1755871429766,0.272806,114220.0,114210.0,0.2869228]
[1755871429961,0.14404,114220.0,114210.0,0.35711631]
[1755871430162,0.23018,114250.0,114240.0,0.0875498]
[1755871430468,0.14484,114230.0,114210.0,0.15775535]
[1755871430762,0.14484,114230.0,114200.0,0.1]
[1755871430763,0.23098,114210.0,114200.0,0.1]
[1755871430963,0.23018,114190.0,114170.0,1.33574098]
[1755871431169,0.23018,114190.0,114170.0,1.27623388]
[1755871431368,0.37483295,114190.0,114180.0,0.1]
[1755871431560,0.62403295,114180.0,114140.0,0.0876264]
[1755871431869,0.02383,114150.0,114120.0,0.0876344]
[1755871432165,0.02383,114160.0,114140.0,0.0876234]
[1755871432470,0.14385295,114190.0,114140.0,0.2347334]
[1755871432670,0.16787,114160.0,114140.0,0.14711]
[1755871432867,0.14404,114150.0,114130.0,0.2869836]
[1755871433068,0.14404,114140.0,114120.0,0.21587269]
[1755871433264,0.14424,114140.0,114120.0,0.15640089]
[1755871433567,0.09469325,114140.0,114130.0,0.14711]
[1755871433764,0.0008,114190.0,114130.0,0.14711]
[1755871433967,0.0008,114180.0,114140.0,0.14711]
[1755871434267,0.09469325,114190.0,114170.0,0.4340619]
[1755871434566,0.01919267,114280.0,114200.0,0.2869291]
[1755871434769,0.01953,114270.0,114210.0,0.0883694]
[1755871434974,0.11388592,114280.0,114230.0,0.4340163]
[1755871434975,0.01953,114260.0,114230.0,0.4340163]
[1755871435164,0.02615,114310.0,114240.0,0.14711]
[1755871435365,0.0008,114290.0,114230.0,0.0875563]
[1755871435565,0.02615,114310.0,114220.0,0.0875634]
[1755871435566,0.06129,114270.0,114220.0,0.0875634]
[1755871435867,0.52658159,114290.0,114220.0,0.8764517]
[1755871436068,0.02615,114310.0,114220.0,0.8764517]
[1755871436069,0.06129,114280.0,114230.0,0.14711]
[1755871436267,0.06129,114280.0,114220.0,1.0758017]
[1755871436268,0.06129,114280.0,114250.0,0.14711]
[1755871436569,0.06129,114290.0,114250.0,0.34646]
[1755871436869,0.06149,114280.0,114250.0,0.4340014]
[1755871437068,0.0002,114270.0,114250.0,0.4340014]
[1755871437262,0.02615,114310.0,114280.0,0.0875176]
[1755871437263,0.08744,114310.0,114280.0,0.0875176]
[1755871437460,0.08744,114310.0,114290.0,0.0883104]
[1755871437461,0.02615,114310.0,114290.0,0.0883104]
[1755871437767,0.02615,114310.0,114300.0,0.42844]
[1755871438474,0.02615,114310.0,114300.0,0.67844]
[1755871439066,0.02615,114310.0,114300.0,0.67924]
[1755871439272,0.0002,114340.0,114320.0,0.14711]
[1755871439472,0.52606732,114380.0,114310.0,0.19935]
[1755871439673,0.0002,114330.0,114310.0,0.34646]
[1755871439865,0.0002,114330.0,114310.0,0.14711]
[1755871440269,0.0002,114320.0,114310.0,0.19935]
[1755871440472,0.0002,114330.0,114320.0,0.34646]
[1755871440770,0.21129,114390.0,114360.0,0.14711]
[1755871440970,0.0008,114370.0,114300.0,0.14711]
[1755871441177,0.67606732,114390.0,114290.0,0.08827758]
[1755871441370,0.0002,114350.0,114320.0,0.14711]
[1755871441570,0.0002,114350.0,114330.0,0.14711]
[1755871442069,8.279e-05,114340.0,114330.0,0.14711]
[1755871442276,0.06129,114380.0,114340.0,0.4339331]
[1755871442471,0.0002,114360.0,114350.0,0.14711]
[1755871442971,0.0002,114360.0,114340.0,0.06917605]
[1755871443168,0.0004,114360.0,114340.0,0.34646]
[1755871443369,0.0004,114350.0,114330.0,0.14711]
[1755871443567,0.06169,114370.0,114340.0,0.34646]
[1755871443775,0.0002,114340.0,114320.0,0.14711]
[1755871444082,0.0006,114340.0,114320.0,0.14711]
[1755871444275,0.0002,114330.0,114320.0,0.21665508]
[1755871444474,0.31189,114330.0,114320.0,0.06954508]
[1755871444671,0.06149,114360.0,114320.0,0.1694662]
[1755871444879,0.0004,114340.0,114330.0,0.14711]
[1755871445078,0.0004,114320.0,114310.0,0.14711]
[1755871445576,0.2506,114320.0,114290.0,0.5159502]
[1755871445776,0.0006,114330.0,114300.0,0.28133]
[1755871445971,0.06149,114330.0,114290.0,0.15894965]
[1755871446171,0.0004,114310.0,114290.0,0.35276945]
[1755871446381,0.0006,114300.0,114290.0,0.07143945]
[1755871446580,0.06129,114310.0,114290.0,0.14711]
[1755871446877,0.06129,114310.0,114280.0,0.2868686]
[1755871446878,0.06129,114350.0,114320.0,0.14711]
[1755871447081,0.0008,114380.0,114330.0,0.34646]
[1755871447376,0.06129,114380.0,114350.0,0.14711]
[1755871447576,0.0004,114360.0,114350.0,0.14711]
[1755871447781,0.0004,114350.0,114340.0,0.14711]
[1755871448085,0.0004,114350.0,114310.0,0.0874951]
[1755871448276,0.0004,114330.0,114320.0,0.14711]
[1755871448482,0.25,114350.0,114320.0,0.14711]
[1755871448781,0.77606732,114340.0,114280.0,0.0008]
[1755871448980,0.001,114380.0,114280.0,0.28213]
[1755871448981,0.67010732,114310.0,114280.0,0.28213]
[1755871449175,0.14404,114320.0,114290.0,0.08198]
[1755871449378,0.14404,114290.0,114280.0,0.0008]
[1755871449572,0.14404,114290.0,114280.0,0.21583637]
[1755871449778,0.25,114290.0,114260.0,0.28133]
[1755871449985,0.14404,114290.0,114270.0,0.21583637]
[1755871450171,0.39404,114290.0,114260.0,0.28133]
[1755871450372,0.39404,114290.0,114260.0,0.21583637]
[1755871450373,0.14404,114280.0,114260.0,0.21583637]
[1755871450578,0.14404,114270.0,114240.0,0.19935]
[1755871450780,0.52606732,114300.0,114250.0,0.36294637]
[1755871450980,1.6642,114360.0,114270.0,0.14711]
[1755871450981,0.14404,114290.0,114270.0,0.14711]
[1755871451281,0.14404,114280.0,114260.0,0.21583637]
[1755871451489,0.14404,114270.0,114260.0,0.21583637]
[1755871451783,0.14424,114270.0,114260.0,0.21583637]
[1755871451988,0.0002,114270.0,114260.0,0.81309637]
[1755871452186,0.0002,114310.0,114260.0,0.46663637]
[1755871452487,0.0002,114300.0,114280.0,0.42844]
[1755871452782,0.0002,114300.0,114280.0,0.42924]
[1755871452986,0.001,114330.0,114280.0,0.56229637]
[1755871453175,0.14424,114280.0,114260.0,0.14711]
[1755871453379,0.14424,114270.0,114260.0,0.21583637]
[1755871453575,0.14404,114270.0,114240.0,0.22909]
[1755871453776,0.14404,114270.0,114250.0,0.21663637]
[1755871454075,0.14424,114300.0,114280.0,0.34646]
[1755871454280,0.14404,114290.0,114270.0,0.44646]
[1755871454483,0.14424,114310.0,114290.0,0.34646]
[1755871454888,0.51860108,114360.0,114300.0,0.36374637]
[1755871455091,0.51940108,114380.0,114310.0,0.34646]
[1755871455381,0.51860108,114380.0,114310.0,0.65059157]
[1755871455585,0.0002,114350.0,114330.0,0.28133]
[1755871455791,0.01805079,114410.0,114350.0,0.42844]
[1755871455980,0.01805079,114410.0,114360.0,0.19935]
[1755871456181,0.01805079,114410.0,114370.0,0.14711]
[1755871456581,0.25,114400.0,114350.0,0.14711]
[1755871456884,0.03356,114390.0,114330.0,0.14711]
[1755871457087,0.03276,114390.0,114330.0,0.55271637]
[1755871457285,0.03276,114370.0,114350.0,0.14105]
[1755871457496,0.03276,114400.0,114340.0,0.30410847]
[1755871457788,0.03276,114390.0,114340.0,0.35688637]
[1755871457988,0.03356,114390.0,114340.0,0.35688637]
[1755871458178,0.03276,114390.0,114340.0,0.35688637]
[1755871458489,0.03276,114370.0,114350.0,0.14105]
[1755871458789,0.25,114390.0,114360.0,0.33082]
[1755871458790,0.03276,114390.0,114360.0,0.33082]
[1755871459088,0.251,114380.0,114300.0,1.92405913]
[1755871459292,0.0002,114350.0,114320.0,0.33082]
[1755871459493,0.60603568,114390.0,114320.0,0.14105]
[1755871459494,0.0002,114340.0,114320.0,0.14105]
[1755871459680,0.03276,114330.0,114300.0,0.40174913]
[1755871459880,0.0002,114320.0,114300.0,0.14105]
[1755871460092,0.03276,114310.0,114280.0,0.14105]
[1755871460287,0.03296,114300.0,114280.0,0.14105]
[1755871460592,0.0002,114300.0,114290.0,0.33082]
[1755871460793,0.2502,114300.0,114290.0,0.14105]
[1755871461295,0.03276,114290.0,114260.0,0.14105]
[1755871461483,0.0002,114280.0,114260.0,0.33082]
[1755871461685,0.0002,114280.0,114270.0,0.14105]
[1755871461890,0.0002,114280.0,114270.0,0.33082]
[1755871462292,0.0002,114280.0,114270.0,0.41982]
[1755871462498,0.44195775,114340.0,114270.0,0.63565637]
[1755871462790,0.0874886,114320.0,114270.0,0.63565637]
[1755871462990,0.0874805,114330.0,114270.0,0.14105]
[1755871463197,0.0874808,114330.0,114270.0,0.14105]
[1755871463401,0.0874879,114320.0,114270.0,0.14105]
[1755871463598,0.25,114330.0,114270.0,0.14105]
[1755871463797,0.60606628,114350.0,114280.0,0.35688637]
[1755871463999,0.0874723,114340.0,114280.0,0.54665637]
[1755871464296,0.60607398,114340.0,114280.0,0.54665637]
[1755871464501,0.51860108,114350.0,114290.0,0.2285601]
[1755871464695,0.60606608,114350.0,114290.0,0.14105]
[1755871464999,0.60607368,114340.0,114290.0,0.14105]
[1755871465294,0.60603588,114390.0,114300.0,0.30563637]
[1755871465504,0.0874375,114390.0,114330.0,0.33082]
[1755871465689,0.0002,114370.0,114340.0,0.18977]
[1755871466001,1.76863659,114410.0,114350.0,0.14105]
[1755871466002,0.0002,114360.0,114350.0,0.14105]
[1755871466395,0.2502,114360.0,114330.0,0.14105]
[1755871466597,0.0002,114350.0,114330.0,0.35688637]
[1755871466795,0.0002,114350.0,114340.0,0.18977]
[1755871466988,0.0002,114350.0,114340.0,0.33082]
[1755871467194,0.0002,114350.0,114340.0,0.41982]
[1755871467394,0.0002,114350.0,114340.0,0.63565637]
[1755871467587,0.0874272,114400.0,114340.0,0.54665637]
[1755871467792,0.20294,114380.0,114350.0,0.33082]
[1755871467998,0.20294,114370.0,114360.0,0.14105]
[1755871468499,0.45294,114370.0,114360.0,0.14105]
[1755871468702,0.25,114370.0,114340.0,0.14105]
[1755871468894,0.20294,114380.0,114360.0,0.14105]
[1755871469095,0.20294,114390.0,114380.0,0.14105]
[1755871469296,0.2030324,114390.0,114380.0,0.14105]
[1755871469499,0.20302447,114390.0,114380.0,0.14105]
[1755871469700,0.20294,114390.0,114380.0,0.14105]
[1755871470097,0.25,114390.0,114370.0,0.14105]
[1755871470296,1.68133079,114410.0,114380.0,0.14105]
[1755871470497,0.20294,114390.0,114380.0,0.14105]
[1755871471005,0.20742,114380.0,114320.0,0.0874871]
[1755871471299,0.20742,114380.0,114300.0,0.49506769]
[1755871471300,0.06895,114340.0,114300.0,0.49506769]
[1755871471499,0.06922842,114330.0,114310.0,0.089]
[1755871471694,0.06922842,114330.0,114300.0,0.49506769]
[1755871471695,0.06895,114310.0,114300.0,0.06943132]
[1755871471890,0.06922686,114310.0,114280.0,0.089]
[1755871472099,0.51794044,114300.0,114250.0,0.089]
[1755871472293,0.20762,114280.0,114250.0,0.089]
[1755871472500,0.06915,114270.0,114250.0,0.07127527]
[1755871472797,0.06895,114260.0,114230.0,0.089]
[1755871472998,0.0002,114250.0,114230.0,0.14105]
[1755871473202,0.06895,114240.0,114220.0,0.14105]
[1755871473499,0.65731138,114260.0,114200.0,0.1582623]
[1755871473500,0.60717498,114260.0,114200.0,0.089]
[1755871473698,0.06895,114240.0,114210.0,0.70440637]
[1755871473894,0.06895,114240.0,114220.0,0.27877]
[1755871474095,0.06895,114250.0,114230.0,0.27877]
[1755871474404,0.13847,114240.0,114210.0,0.18977]
[1755871474702,0.06895,114210.0,114190.0,0.27877]
[1755871474902,0.06895,114220.0,114190.0,0.089]
[1755871475101,0.13847,114230.0,114200.0,0.42563637]
[1755871475397,0.20742,114250.0,114220.0,0.33082]
[1755871475591,0.06895,114250.0,114230.0,0.33082]
[1755871475791,0.06895,114250.0,114230.0,0.14105]
[1755871475996,0.06895,114250.0,114230.0,0.75645637]
[1755871476194,0.06895,114270.0,114240.0,0.42563637]
[1755871476404,0.06895,114270.0,114240.0,0.65568637]
[1755871476405,0.06895,114260.0,114240.0,0.65568637]
[1755871476599,0.0002,114260.0,114250.0,0.33082]
[1755871476792,0.0002,114260.0,114250.0,0.84625637]
[1755871476991,0.06915,114310.0,114260.0,0.0008]
[1755871477299,0.06915,114310.0,114290.0,0.33082]
[1755871477496,1.64435,114330.0,114300.0,0.27877]
[1755871477691,0.13927,114320.0,114290.0,0.42563637]
[1755871477895,0.20762,114290.0,114260.0,0.14105]
[1755871478101,0.13927,114300.0,114270.0,0.14105]
[1755871478302,0.06915,114270.0,114230.0,0.14105]
[1755871478502,0.06915,114250.0,114230.0,0.75645637]
[1755871478805,0.20762,114260.0,114240.0,0.33082]
[1755871479004,0.20762,114260.0,114240.0,0.14105]
[1755871479298,0.06915,114260.0,114240.0,0.75645637]
[1755871479499,0.13847,114280.0,114260.0,0.14105]
[1755871479500,0.20762,114280.0,114260.0,0.14105]
[1755871479697,0.60633748,114310.0,114260.0,0.41982]
[1755871479698,0.13847,114290.0,114260.0,0.41982]
[1755871479896,0.06915,114280.0,114260.0,0.41982]
[1755871480095,0.06915,114280.0,114260.0,0.65568637]
[1755871480292,0.06935,114280.0,114260.0,0.84545637]
[1755871480495,0.0002,114280.0,114260.0,0.42563637]
[1755871480692,0.06915,114270.0,114260.0,0.42563637]
[1755871480898,0.06935,114270.0,114260.0,0.42563637]
[1755871481501,0.06915,114300.0,114270.0,0.089]